fUSD/lending_fUSD_20250514
["ID","MTS","AMOUNT","RATE_DAILY","PERIOD"]
[361021369,1747206677562,-400.0,0.0001178,2]
[361021370,1747206677572,-1490.42,0.0001178,2]
[361021371,1747206677582,-1018.01,0.0001178,2]
[361021372,1747206677591,-442.81,0.0001178,2]
[361021373,1747206677601,-847.84,0.0001178,2]
[361021374,1747206677610,-400.0,0.0001178,2]
[361021375,1747206677619,-400.0,0.0001178,2]
[361021376,1747206677629,-525.43,0.0001178,2]
[361021377,1747206677638,-400.0,0.0001178,2]
[361021378,1747206677647,-1736.64,0.0001178,2]
[361021379,1747206677658,-589.58,0.0001178,2]
[361021380,1747206677669,-400.0,0.0001178,2]
[361021381,1747206677679,-400.0,0.0001178,2]
[361021382,1747206677688,-423.45,0.0001178,2]
[361021383,1747206677698,-1996.67,0.0001178,2]
[361021384,1747206677708,-1218.47,0.0001178,2]
[361021385,1747206677717,-989.29,0.0001178,2]
[361021386,1747206677726,-889.37,0.0001178,2]
[361021387,1747206677737,-400.0,0.0001178,2]
[361021388,1747206677747,-400.0,0.0001178,2]
[361021389,1747206677756,-988.93,0.0001178,2]
[361021390,1747206677766,-1901.6,0.0001178,2]
[361021391,1747206677775,-575.42,0.0001178,2]
[361021392,1747206677785,-770.93,0.0001178,2]
[361021393,1747206677794,-400.0,0.0001178,2]
[361021394,1747206677805,-400.0,0.0001178,2]
[361021395,1747206677814,-400.0,0.0001178,2]
[361021396,1747206677823,-400.0,0.0001178,2]
[361021397,1747206677833,-400.0,0.0001178,2]
[361021398,1747206677843,-521.47,0.0001178,2]
[361021399,1747206677852,-888.01,0.0001178,2]
[361021400,1747206677862,-654.38,0.0001178,2]
[361021401,1747206677872,-493.22,0.0001178,2]
[361021402,1747206677881,-418.84,0.0001178,2]
[361021403,1747206677891,-400.0,0.0001178,2]
[361021404,1747206677900,-1314.0,0.0001178,2]
[361021405,1747206677910,-624.27,0.0001178,2]
[361021406,1747206677919,-1693.52,0.0001178,2]
[361021407,1747206677929,-1127.84,0.0001178,2]
[361021408,1747206677939,-400.0,0.0001178,2]
[361021409,1747206677949,-429.55,0.0001178,2]
[361021410,1747206677959,-1536.89,0.0001178,2]
[361021411,1747206677968,-400.0,0.0001178,2]
[361021412,1747206677978,-881.74,0.0001178,2]
[361021413,1747206677987,-1131.17,0.0001178,2]
[361021414,1747206677997,-963.74,0.0001178,2]
[361021415,1747206678006,-400.0,0.0001178,2]
[361021416,1747206678016,-5040.09,0.0001178,2]
[361021417,1747206678025,-400.0,0.0001178,2]
[361021418,1747206678035,-2420.14,0.0001178,2]
[361021419,1747206678045,-761.42,0.0001178,2]
[361021420,1747206678054,-400.0,0.0001178,2]
[361021421,1747206678064,-400.0,0.0001178,2]
[361021422,1747206678073,-3064.03,0.0001178,2]
[361021423,1747206678083,-400.0,0.0001178,2]
[361021424,1747206678093,-1586.38,0.0001178,2]
[361021425,1747206678102,-400.0,0.0001178,2]
[361021426,1747206678305,-400.0,0.0001178,2]
[361021427,1747206678317,-670.02,0.0001178,2]
[361021428,1747206678326,-621.21,0.0001178,2]
[361021429,1747206678335,-400.0,0.0001178,2]
[361021430,1747206678347,-522.44,0.0001178,2]
[361021431,1747206678357,-400.0,0.0001178,2]
[361021432,1747206678364,-889.08,0.0001178,2]
[361021433,1747206678373,-409.48,0.0001178,2]
[361021434,1747206678382,-400.0,0.0001178,2]
[361021435,1747206678392,-400.0,0.0001178,2]
[361021436,1747206678401,-400.0,0.0001178,2]
[361021437,1747206678411,-400.0,0.0001178,2]
[361021438,1747206678421,-461.82,0.0001178,2]
[361021439,1747206678431,-1647.43,0.0001178,2]
[361021440,1747206678441,-400.0,0.0001178,2]
[361021441,1747206678451,-7245.06,0.0001178,2]
[361021442,1747206678460,-1330.32,0.0001178,2]
[361021443,1747206678471,-881.7,0.0001178,2]
[361021444,1747206678480,-400.0,0.0001178,2]
[361021445,1747206678490,-3212.3,0.0001178,2]
[361021446,1747206678499,-400.0,0.0001178,2]
[361021447,1747206678508,-575.2,0.0001178,2]
[361021448,1747206678518,-2383.8,0.0001178,2]
[361021449,1747206678527,-400.0,0.0001178,2]
[361021450,1747206678536,-1511.16,0.0001178,2]
[361021451,1747206678546,-872.65,0.0001178,2]
[361021452,1747206678556,-593.63,0.0001178,2]
[361021453,1747206678566,-1160.4,0.0001178,2]
[361021454,1747206678576,-2156.24,0.0001178,2]
[361021455,1747206678588,-400.0,0.0001178,2]
[361021456,1747206678598,-400.0,0.0001178,2]
[361021457,1747206678608,-6267.91,0.0001178,2]
[361021458,1747206678617,-2234.08,0.0001178,2]
[361021459,1747206678627,-400.0,0.0001178,2]
[361021460,1747206678636,-1087.15,0.0001178,2]
[361021461,1747206678646,-652.57,0.0001178,2]
[361021462,1747206678655,-418.64,0.0001178,2]
[361021463,1747206678664,-400.0,0.0001178,2]
[361021464,1747206678674,-545.6,0.0001178,2]
[361021465,1747206678684,-400.0,0.0001178,2]
[361021466,1747206678694,-676.91,0.0001178,2]
[361021467,1747206678703,-768.94,0.0001178,2]
[361021468,1747206678712,-535.71,0.0001178,2]
[361021469,1747206678722,-1543.56,0.0001178,2]
[361021470,1747206678731,-400.0,0.0001178,2]
[361021471,1747206678740,-400.0,0.0001178,2]
[361021472,1747206678750,-1817.38,0.0001178,2]
[361021473,1747206678761,-864.24,0.0001178,2]
[361021474,1747206678772,-994.55,0.0001178,2]
[361021475,1747206678782,-400.0,0.0001178,2]
[361021476,1747206678793,-1356.01,0.0001178,2]
[361021477,1747206678803,-400.0,0.0001178,2]
[361021478,1747206678814,-400.0,0.0001178,2]
[361021479,1747206678825,-400.0,0.0001178,2]
[361021480,1747206678835,-400.0,0.0001178,2]
[361021481,1747206678846,-1561.0,0.0001178,2]
[361021482,1747206678857,-2452.24,0.0001178,2]
[361021483,1747206678867,-453.64,0.0001178,2]
[361021484,1747206678877,-648.67,0.0001178,2]
[361021485,1747206678887,-4163.65,0.0001178,2]
[361021486,1747206678898,-3648.97,0.0001178,2]
[361021487,1747206678908,-718.94,0.0001178,2]
[361021488,1747206678918,-528.55,0.0001178,2]
[361021489,1747206678927,-1414.19,0.0001178,2]
[361021490,1747206678940,-400.0,0.0001178,2]
[361021491,1747206678950,-400.0,0.0001178,2]
[361021492,1747206678959,-400.0,0.0001178,2]
[361021493,1747206678969,-400.0,0.0001178,2]
[361021494,1747206678980,-400.0,0.0001178,2]
[361021495,1747206678989,-400.0,0.0001178,2]
[361021496,1747206679000,-2155.05,0.0001178,2]
[361021497,1747206679011,-417.55,0.0001178,2]
[361021498,1747206679021,-752.26,0.0001178,2]
[361021499,1747206679031,-616.99,0.0001178,2]
[361021500,1747206679041,-408.4,0.0001178,2]
[361021501,1747206679051,-13431.9472329,0.00011795,2]
[361021502,1747206679061,-1000.0,0.00011904,2]
[361021503,1747206679071,-1680.0,0.00011943,2]
[361021504,1747206679082,-26937.64393319,0.00011954,2]
[361021505,1747206679092,-7500.0,0.00012,2]
[361021506,1747206679102,-500.0,0.00012,2]
[361021507,1747206679112,-200.0,0.00012,2]
[361021508,1747206679122,-200.0,0.0001201,2]
[361021509,1747206679132,-420.0,0.0001204,2]
[361021510,1747206679142,-300.0,0.00012053,2]
[361021511,1747206679152,-400.0,0.00012054,2]
[361021512,1747206679161,-199.370519,0.00012054,2]
[361021513,1747206679171,-199.370519,0.00012054,2]
[361021514,1747206679182,-283.351428,0.00012054,2]
[361021515,1747206679192,-151.0,0.00012054,2]
[361021516,1747206679201,-151.0,0.00012054,2]
[361021517,1747206679211,-151.0,0.00012054,2]
[361021518,1747206679220,-151.0,0.00012054,2]
[361021519,1747206679230,-175.302114,0.00012054,2]
[361021520,1747206679239,-175.302114,0.00012054,2]
[361021521,1747206679249,-151.0,0.00012054,2]
[361021522,1747206679259,-151.0,0.00012054,2]
[361021523,1747206679272,-151.0,0.00012054,2]
[361021524,1747206679282,-194.851805,0.00012054,2]
[361021525,1747206679291,-194.851805,0.00012054,2]
[361021526,1747206679300,-151.0,0.00012054,2]
[361021527,1747206679311,-151.0,0.00012054,2]
[361021528,1747206679320,-151.0,0.00012054,2]
[361021529,1747206679331,-151.0,0.00012054,2]
[361021530,1747206679343,-151.0,0.00012054,2]
[361021531,1747206679353,-151.0,0.00012054,2]
[361021532,1747206679363,-183.069237,0.00012054,2]
[361021533,1747206679373,-230.791114,0.00012054,2]
[361021534,1747206679383,-183.069237,0.00012054,2]
[361021535,1747206679392,-151.0,0.00012054,2]
[361021536,1747206679402,-151.0,0.00012054,2]
[361021537,1747206679411,-151.0,0.00012054,2]
[361021538,1747206679421,-151.0,0.00012054,2]
[361021539,1747206679432,-151.0,0.00012054,2]
[361021540,1747206679442,-151.0,0.00012054,2]
[361021541,1747206679452,-246.690752,0.00012054,2]
[361021542,1747206679462,-400.0,0.00012054,2]
[361021543,1747206679471,-601.16,0.00012054,2]
[361021544,1747206679481,-590.16,0.00012054,2]
[361021545,1747206679490,-400.0,0.00012054,2]
[361021546,1747206679500,-569.56,0.00012054,2]
[361021547,1747206679509,-459.7,0.00012054,2]
[361021548,1747206679519,-400.0,0.00012054,2]
[361021549,1747206679530,-668.0,0.00012054,2]
[361021550,1747206679540,-847.2,0.00012054,2]
[361021551,1747206679549,-400.0,0.00012054,2]
[361021552,1747206679559,-400.0,0.00012054,2]
[361021553,1747206679570,-400.0,0.00012054,2]
[361021554,1747206679581,-400.0,0.00012054,2]
[361021555,1747206679592,-400.0,0.00012054,2]
[361021556,1747206679603,-400.0,0.00012054,2]
[361021557,1747206679613,-658.86,0.00012054,2]
[361021558,1747206679623,-400.0,0.00012054,2]
[361021559,1747206679633,-400.0,0.00012054,2]
[361021560,1747206679644,-400.0,0.00012054,2]
[361021561,1747206679654,-400.0,0.00012054,2]
[361021562,1747206679664,-767.64,0.00012054,2]
[361021563,1747206679674,-400.0,0.00012054,2]
[361021564,1747206679684,-531.25818945,0.00012054,2]
[361021565,1747206679695,-400.0,0.00012054,2]
[361021566,1747206679705,-400.0,0.00012054,2]
[361021567,1747206679714,-400.0,0.00012054,2]
[361021568,1747206679725,-400.0,0.00012054,2]
[361021569,1747206679735,-400.0,0.00012054,2]
[361021570,1747206679745,-1485.43,0.00012054,2]
[361021571,1747206679755,-842.57,0.00012054,2]
[361021572,1747206679764,-174.547771,0.00012054,2]
[361021573,1747206679774,-1808.756094,0.00012054,2]
[361021574,1747206679783,-339.38972514,0.00012054,2]
[361021575,1747206679793,-400.0,0.00012054,2]
[361021576,1747206679802,-1058.31,0.00012054,2]
[361021577,1747206679812,-400.0,0.00012054,2]
[361021578,1747206679823,-518.6,0.00012054,2]
[361021579,1747206679833,-628.71,0.00012054,2]
[361021580,1747206679843,-400.0,0.00012054,2]
[361021581,1747206679852,-3813.596718,0.00012054,2]
[361021582,1747206679863,-400.0,0.00012054,2]
[361021583,1747206679873,-400.0,0.00012054,2]
[361021584,1747206679882,-414.21,0.00012054,2]
[361021585,1747206679891,-2782.03,0.00012054,2]
[361021586,1747206679901,-435.00909964,0.00012054,2]
[361021587,1747206679910,-1098.75,0.00012054,2]
[361021588,1747206679920,-282.13648593,0.00012054,2]
[361021589,1747206679930,-400.0,0.00012054,2]
[361021590,1747206679940,-400.0,0.00012054,2]
[361021591,1747206679950,-400.0,0.00012054,2]
[361021592,1747206679960,-459.74,0.00012054,2]
[361021593,1747206679970,-400.0,0.00012054,2]
[361021594,1747206679980,-2382.22,0.00012054,2]
[361021595,1747206679989,-400.0,0.00012054,2]
[361021596,1747206679999,-552.88,0.00012054,2]
[361021597,1747206680008,-593.33,0.00012054,2]
[361021598,1747206680018,-485.79,0.00012054,2]
[361021599,1747206680028,-400.0,0.00012054,2]
[361021600,1747206680038,-400.0,0.00012054,2]
[361021601,1747206680049,-400.0,0.00012054,2]
[361021602,1747206680059,-400.0,0.00012054,2]
[361021603,1747206680069,-409.38,0.00012054,2]
[361021604,1747206680080,-235.0645208,0.00012054,2]
[361021605,1747206680090,-714.07,0.00012054,2]
[361021606,1747206680100,-1155.36,0.00012054,2]
[361021607,1747206680110,-400.0,0.00012054,2]
[361021608,1747206680120,-505.3,0.00012054,2]
[361021609,1747206680130,-400.0,0.00012054,2]
[361021610,1747206680140,-558.68,0.00012054,2]
[361021611,1747206680150,-408.88,0.00012054,2]
[361021612,1747206680160,-729.7,0.00012054,2]
[361021613,1747206680169,-1059.2,0.00012054,2]
[361021614,1747206680179,-400.0,0.00012054,2]
[361021615,1747206680189,-663.53,0.00012054,2]
[361021616,1747206680199,-400.0,0.00012054,2]
[361021617,1747206680209,-1319.91,0.00012054,2]
[361021618,1747206680219,-690.39,0.00012054,2]
[361021619,1747206680229,-657.11,0.00012054,2]
[361021620,1747206680239,-449.59,0.00012054,2]
[361021621,1747206680249,-400.0,0.00012054,2]
[361021622,1747206680259,-2536.44,0.00012054,2]
[361021623,1747206680273,-400.0,0.00012054,2]
[361021624,1747206680284,-400.0,0.00012054,2]
[361021625,1747206680293,-400.0,0.00012054,2]
[361021626,1747206680303,-503.38645309,0.00012054,2]
[361021627,1747206680314,-400.0,0.00012054,2]
[361021628,1747206680324,-556.9,0.00012054,2]
[361021629,1747206680333,-1226.39,0.00012054,2]
[361021630,1747206680344,-490.55,0.00012054,2]
[361021631,1747206680354,-400.0,0.00012054,2]
[361021632,1747206680363,-416.36,0.00012054,2]
[361021633,1747206680373,-400.0,0.00012054,2]
[361021634,1747206680382,-400.0,0.00012054,2]
[361021635,1747206680392,-1436.26,0.00012054,2]
[361021636,1747206680401,-400.0,0.00012054,2]
[361021637,1747206680411,-400.0,0.00012054,2]
[361021638,1747206680420,-400.0,0.00012054,2]
[361021639,1747206680430,-400.0,0.00012054,2]
[361021640,1747206680440,-522.1,0.00012054,2]
[361021641,1747206680450,-474.62,0.00012054,2]
[361021642,1747206680460,-400.0,0.00012054,2]
[361021643,1747206680469,-628.44,0.00012054,2]
[361021644,1747206680478,-400.0,0.00012054,2]
[361021645,1747206680488,-1574.26,0.00012054,2]
[361021646,1747206680497,-878.71,0.00012054,2]
[361021647,1747206680507,-400.0,0.00012054,2]
[361021648,1747206680517,-446.95,0.00012054,2]
[361021649,1747206680527,-402.16,0.00012054,2]
[361021650,1747206680536,-1333.87,0.00012054,2]
[361021651,1747206680545,-400.0,0.00012054,2]
[361021652,1747206680555,-400.0,0.00012054,2]
[361021653,1747206680565,-669.09,0.00012054,2]
[361021654,1747206680576,-782.19,0.00012054,2]
[361021655,1747206680586,-1165.88,0.00012054,2]
[361021656,1747206680595,-400.0,0.00012054,2]
[361021657,1747206680605,-1555.28,0.00012054,2]
[361021658,1747206680614,-874.97,0.00012054,2]
[361021659,1747206680623,-1234.4,0.00012054,2]
[361021660,1747206680633,-498.87532475,0.00012054,2]
[361021661,1747206680643,-400.0,0.00012054,2]
[361021662,1747206680652,-1839.29,0.00012054,2]
[361021663,1747206680661,-400.0,0.00012054,2]
[361021664,1747206680670,-400.0,0.00012054,2]
[361021665,1747206680679,-400.0,0.00012054,2]
[361021666,1747206680689,-683.75,0.00012054,2]
[361021667,1747206680699,-2068.96,0.00012054,2]
[361021668,1747206680708,-2149.71,0.00012054,2]
[361021669,1747206680774,-718.47,0.00012054,2]
[361021670,1747206680784,-400.0,0.00012054,2]
[361021671,1747206680794,-1053.32,0.00012054,2]
[361021672,1747206680803,-662.22,0.00012054,2]
[361021673,1747206680812,-400.0,0.00012054,2]
[361021674,1747206680821,-400.0,0.00012054,2]
[361021675,1747206680831,-662.21,0.00012054,2]
[361021676,1747206680840,-400.0,0.00012054,2]
[361021677,1747206680849,-634.45,0.00012054,2]
[361021678,1747206680859,-458.07,0.00012054,2]
[361021679,1747206680868,-1985.62,0.00012054,2]
[361021680,1747206680878,-400.0,0.00012054,2]
[361021681,1747206680887,-2793.55,0.00012054,2]
[361021682,1747206680897,-506.5,0.00012054,2]
[361021683,1747206680906,-483.52978262,0.00012054,2]
[361021684,1747206680915,-400.0,0.00012054,2]
[361021685,1747206680925,-589.74,0.00012054,2]
[361021686,1747206680935,-562.53,0.00012054,2]
[361021687,1747206680944,-400.0,0.00012054,2]
[361021688,1747206680953,-1128.03,0.00012054,2]
[361021689,1747206680963,-400.0,0.00012054,2]
[361021690,1747206680972,-450.23,0.00012054,2]
[361021691,1747206680983,-400.0,0.00012054,2]
[361021692,1747206680993,-441.4,0.00012054,2]
[361021693,1747206681003,-445.34,0.00012054,2]
[361021694,1747206681013,-1564.06,0.00012054,2]
[361021695,1747206681024,-1415.89,0.00012054,2]
[361021696,1747206681034,-400.0,0.00012054,2]
[361021697,1747206681044,-1466.38,0.00012054,2]
[361021698,1747206681053,-1364.13,0.00012054,2]
[361021699,1747206681063,-400.0,0.00012054,2]
[361021700,1747206681072,-2839.08,0.00012054,2]
[361021701,1747206681082,-400.0,0.00012054,2]
[361021702,1747206681092,-400.0,0.00012054,2]
[361021703,1747206681101,-400.0,0.00012054,2]
[361021704,1747206681111,-1563.23,0.00012054,2]
[361021705,1747206681119,-453.86,0.00012054,2]
[361021706,1747206681128,-400.0,0.00012054,2]
[361021707,1747206681137,-400.0,0.00012054,2]
[361021708,1747206681147,-627.19,0.00012054,2]
[361021709,1747206681156,-1603.87,0.00012054,2]
[361021710,1747206681165,-400.0,0.00012054,2]
[361021711,1747206681175,-856.07,0.00012054,2]
[361021712,1747206681185,-400.0,0.00012054,2]
[361021713,1747206681194,-450.41288593,0.00012054,2]
[361021714,1747206681204,-400.0,0.00012054,2]
[361021715,1747206681213,-745.81,0.00012054,2]
[361021716,1747206681224,-400.0,0.00012054,2]
[361021717,1747206681234,-760.93,0.00012054,2]
[361021718,1747206681244,-493.42,0.00012054,2]
[361021719,1747206681254,-841.04,0.00012054,2]
[361021720,1747206681266,-476.08,0.00012054,2]
[361021721,1747206681277,-400.0,0.00012054,2]
[361021722,1747206681287,-400.0,0.00012054,2]
[361021723,1747206681296,-400.0,0.00012054,2]
[361021724,1747206681306,-519.0,0.00012054,2]
[361021725,1747206681316,-400.0,0.00012054,2]
[361021726,1747206681325,-400.0,0.00012054,2]
[361021727,1747206681335,-219.80860166,0.00012054,2]
[361021728,1747206681346,-400.0,0.00012054,2]
[361021729,1747206681355,-1414.66,0.00012054,2]
[361021730,1747206681365,-400.0,0.00012054,2]
[361021731,1747206681375,-462.98,0.00012054,2]
[361021732,1747206681385,-505.82,0.00012054,2]
[361021733,1747206681395,-1176.61,0.00012054,2]
[361021734,1747206681405,-427.64,0.00012054,2]
[361021735,1747206681414,-400.0,0.00012054,2]
[361021736,1747206681424,-1227.25,0.00012054,2]
[361021737,1747206681434,-467.97395284,0.00012054,2]
[361021738,1747206681443,-511.43,0.00012054,2]
[361021739,1747206681452,-262.50948037,0.00012054,2]
[361021740,1747206681462,-400.0,0.00012054,2]
[361021741,1747206681471,-495.63,0.00012054,2]
[361021742,1747206681481,-420.32,0.00012054,2]
[361021743,1747206681491,-400.0,0.00012054,2]
[361021744,1747206681500,-400.0,0.00012054,2]
[361021745,1747206681509,-400.0,0.00012054,2]
[361021746,1747206681519,-823.04,0.00012054,2]
[361021747,1747206681529,-400.0,0.00012054,2]
[361021748,1747206681538,-400.0,0.00012054,2]
[361021749,1747206681548,-400.0,0.00012054,2]
[361021750,1747206681557,-400.0,0.00012054,2]
[361021751,1747206681567,-659.45,0.00012054,2]
[361021752,1747206681577,-606.33,0.00012054,2]
[361021753,1747206681587,-717.5,0.00012054,2]
[361021754,1747206681596,-400.0,0.00012054,2]
[361021755,1747206681606,-714.75,0.00012054,2]
[361021756,1747206681617,-400.0,0.00012054,2]
[361021757,1747206681626,-462.06,0.00012054,2]
[361021758,1747206681636,-1347.57,0.00012054,2]
[361021759,1747206681646,-400.0,0.00012054,2]
[361021760,1747206681656,-422.76,0.00012054,2]
[361021761,1747206681665,-400.0,0.00012054,2]
[361021762,1747206681675,-441.49,0.00012054,2]
[361021763,1747206681686,-645.71,0.00012054,2]
[361021764,1747206681695,-745.42,0.00012054,2]
[361021765,1747206681705,-969.06,0.00012054,2]
[361021766,1747206681719,-400.0,0.00012054,2]
[361021767,1747206681730,-739.53,0.00012054,2]
[361021768,1747206681739,-400.0,0.00012054,2]
[361021769,1747206681749,-400.0,0.00012054,2]
[361021770,1747206681760,-1417.56,0.00012054,2]
[361021771,1747206681770,-3382.12,0.00012054,2]
[361021772,1747206681779,-476.29,0.00012054,2]
[361021773,1747206681789,-400.0,0.00012054,2]
[361021774,1747206681799,-905.18,0.00012054,2]
[361021775,1747206681809,-494.2,0.00012054,2]
[361021776,1747206681819,-400.0,0.00012054,2]
[361021777,1747206681829,-730.63,0.00012054,2]
[361021778,1747206681839,-400.0,0.00012054,2]
[361021779,1747206681850,-530.57,0.00012054,2]
[361021780,1747206681860,-758.37,0.00012054,2]
[361021781,1747206681869,-1295.55,0.00012054,2]
[361021782,1747206681879,-1266.69,0.00012054,2]
[361021783,1747206681889,-400.0,0.00012054,2]
[361021784,1747206681898,-621.19,0.00012054,2]
[361021785,1747206681908,-784.77,0.00012054,2]
[361021786,1747206681917,-603.14,0.00012054,2]
[361021787,1747206681927,-400.0,0.00012054,2]
[361021788,1747206681936,-2380.46,0.00012054,2]
[361021789,1747206681946,-400.0,0.00012054,2]
[361021790,1747206681956,-407.32,0.00012054,2]
[361021791,1747206681966,-400.0,0.00012054,2]
[361021792,1747206681976,-400.0,0.00012054,2]
[361021793,1747206681986,-462.42,0.00012054,2]
[361021794,1747206681996,-547.99105047,0.00012054,2]
[361021795,1747206682008,-689.84,0.00012054,2]
[361021796,1747206682018,-400.0,0.00012054,2]
[361021797,1747206682029,-4405.27,0.00012054,2]
[361021798,1747206682039,-400.0,0.00012054,2]
[361021799,1747206682049,-400.0,0.00012054,2]
[361021800,1747206682059,-1115.59,0.00012054,2]
[361021801,1747206682069,-429.19,0.00012054,2]
[361021802,1747206682079,-1025.26,0.00012054,2]
[361021803,1747206682089,-400.0,0.00012054,2]
[361021804,1747206682099,-266.40539994,0.00012054,2]
[361021805,1747206682109,-737.55,0.00012054,2]
[361021806,1747206682118,-481.79,0.00012054,2]
[361021807,1747206682128,-489.93,0.00012054,2]
[361021808,1747206682138,-400.0,0.00012054,2]
[361021809,1747206682147,-400.0,0.00012054,2]
[361021810,1747206682157,-400.0,0.00012054,2]
[361021811,1747206682166,-854.76,0.00012054,2]
[361021812,1747206682175,-426.26,0.00012054,2]
[361021813,1747206682185,-400.0,0.00012054,2]
[361021814,1747206682194,-546.36,0.00012054,2]
[361021815,1747206682204,-405.09,0.00012054,2]
[361021816,1747206682213,-414.32,0.00012054,2]
[361021817,1747206682222,-400.0,0.00012054,2]
[361021818,1747206682232,-543.6717473,0.00012054,2]
[361021819,1747206682241,-362.80820763,0.00012054,2]
[361021820,1747206682250,-400.0,0.00012054,2]
[361021821,1747206682260,-400.0,0.00012054,2]
[361021822,1747206682273,-400.0,0.00012054,2]
[361021823,1747206682282,-414.71,0.00012054,2]
[361021824,1747206682292,-400.0,0.00012054,2]
[361021825,1747206682302,-400.0,0.00012054,2]
[361021826,1747206682314,-418.28,0.00012054,2]
[361021827,1747206682323,-437.26367321,0.00012054,2]
[361021828,1747206682333,-875.11,0.00012054,2]
[361021829,1747206682342,-400.0,0.00012054,2]
[361021830,1747206682353,-400.0,0.00012054,2]
[361021831,1747206682364,-400.0,0.00012054,2]
[361021832,1747206682374,-400.0,0.00012054,2]
[361021833,1747206682383,-400.0,0.00012054,2]
[361021834,1747206682393,-428.81,0.00012054,2]
[361021835,1747206682402,-583.19,0.00012054,2]
[361021836,1747206682412,-400.0,0.00012054,2]
[361021837,1747206682421,-1008.4,0.00012054,2]
[361021838,1747206682430,-400.0,0.00012054,2]
[361021839,1747206682443,-1406.85,0.00012054,2]
[361021840,1747206682454,-400.0,0.00012054,2]
[361021841,1747206682463,-400.0,0.00012054,2]
[361021842,1747206682473,-643.55,0.00012054,2]
[361021843,1747206682483,-646.08,0.00012054,2]
[361021844,1747206682492,-400.0,0.00012054,2]
[361021845,1747206682503,-421.39,0.00012054,2]
[361021846,1747206682513,-400.0,0.00012054,2]
[361021847,1747206682523,-400.0,0.00012054,2]
[361021848,1747206682532,-400.0,0.00012054,2]
[361021849,1747206682542,-452.69019731,0.00012054,2]
[361021850,1747206682551,-2791.29,0.00012054,2]
[361021851,1747206682561,-400.0,0.00012054,2]
[361021852,1747206682570,-400.0,0.00012054,2]
[361021853,1747206682579,-1587.96,0.00012054,2]
[361021854,1747206682589,-400.0,0.00012054,2]
[361021855,1747206682598,-400.0,0.00012054,2]
[361021856,1747206682607,-400.0,0.00012054,2]
[361021857,1747206682617,-1061.47,0.00012054,2]
[361021858,1747206682626,-596.73,0.00012054,2]
[361021859,1747206682635,-400.0,0.00012054,2]
[361021860,1747206682645,-1156.0,0.00012054,2]
[361021861,1747206682654,-1381.79,0.00012054,2]
[361021862,1747206682664,-400.0,0.00012054,2]
[361021863,1747206682673,-400.0,0.00012054,2]
[361021864,1747206682683,-400.0,0.00012054,2]
[361021865,1747206682692,-400.0,0.00012054,2]
[361021866,1747206682702,-400.0,0.00012054,2]
[361021867,1747206682711,-400.0,0.00012054,2]
[361021868,1747206682720,-400.0,0.00012054,2]